fUSD/lending_fUSD_20260517
["ID","MTS","AMOUNT","RATE_DAILY","PERIOD"]
[422506492,1779006633000,-700.0,0.000146,5]
[422506502,1779006633000,-385.37598275,0.00014624,2]
[422506491,1779006633000,-150.0,0.00014578,2]
[422506490,1779006633000,-150.0,0.00014578,2]
[422506479,1779006633000,-150.0,0.00014441,2]
[422506482,1779006633000,-500.0,0.0001449,2]
[422506483,1779006633000,-400.0,0.000145,5]
[422506484,1779006633000,-300.0,0.0001452,2]
[422506480,1779006633000,-150.0,0.00014487,2]
[422506487,1779006633000,-150.0,0.00014537,2]
[422506489,1779006633000,-164.50360177,0.00014551,2]
[422506486,1779006633000,-150.0,0.00014537,2]
[422506488,1779006633000,-150.0,0.00014537,2]
[422506481,1779006633000,-150.0,0.00014487,2]
[422506517,1779006638000,-150.0,0.00014714,2]
[422506524,1779006638000,-150.0,0.00014836,2]
[422506521,1779006638000,-1200.0,0.000148,5]
[422506520,1779006638000,-154.05302279,0.000148,2]
[422506522,1779006638000,-150.0,0.00014805,2]
[422506523,1779006638000,-166.66,0.00014835,2]
[422506519,1779006638000,-150.0,0.00014759,2]
[422506518,1779006638000,-150.0,0.00014714,2]
[422506515,1779006638000,-150.0,0.00014687,2]
[422506507,1779006638000,-771.92,0.00014624,2]
[422506514,1779006638000,-150.0,0.00014687,2]
[422506512,1779006638000,-150.0,0.00014687,2]
[422506511,1779006638000,-150.0,0.00014687,2]
[422506508,1779006638000,-1967.63,0.00014625,2]
[422506510,1779006638000,-150.0,0.00014668,2]
[422506506,1779006638000,-8467.65419349,0.00014624,2]
[422506509,1779006638000,-1680.0,0.00014657,2]
[422506505,1779006638000,-3537.07162142,0.00014624,2]
[422506504,1779006638000,-1405.64665711,0.00014624,2]
[422506513,1779006638000,-150.0,0.00014687,2]
[422506525,1779006638000,-150.0,0.00014836,2]
[422506516,1779006638000,-900.0,0.000147,5]
[422506526,1779006638000,-150.0,0.00014836,2]
[422506527,1779006638000,-150.0,0.0001485,2]
[422506547,1779006638000,-1153.0,0.00014959,2]
[422506546,1779006638000,-150.0,0.00014941,2]
[422506545,1779006638000,-255.0,0.00014903,2]
[422506542,1779006638000,-196.66283172,0.000149,2]
[422506543,1779006638000,-1061.16597692,0.000149,2]
[422506541,1779006638000,-16667.94707458,0.000149,2]
[422506539,1779006638000,-1173.98135034,0.000149,2]
[422506540,1779006638000,-703.85823312,0.000149,2]
[422506537,1779006638000,-154.05302278,0.000149,2]
[422506544,1779006638000,-2736.8923476,0.000149,2]
[422506535,1779006638000,-500.0,0.00014899,2]
[422506536,1779006638000,-500.0,0.00014899,2]
[422506533,1779006638000,-500.0,0.00014899,2]
[422506534,1779006638000,-500.0,0.00014899,2]
[422506529,1779006638000,-150.0,0.00014895,2]
[422506532,1779006638000,-375.48613759,0.00014899,2]
[422506531,1779006638000,-500.0,0.00014899,2]
[422506530,1779006638000,-500.0,0.00014899,2]
[422506528,1779006638000,-150.0,0.0001485,2]
[422506538,1779006638000,-200.0,0.000149,5]
[422506594,1779006639000,-656.53,0.00014999,2]
[422506592,1779006639000,-656.53,0.00014999,2]
[422506591,1779006639000,-656.53,0.00014999,2]
[422506588,1779006639000,-656.53,0.00014999,2]
[422506587,1779006639000,-656.53,0.00014999,2]
[422506590,1779006639000,-656.53,0.00014999,2]
[422506582,1779006639000,-500.0,0.00014999,2]
[422506585,1779006639000,-500.0,0.00014999,2]
[422506583,1779006639000,-500.0,0.00014999,2]
[422506584,1779006639000,-500.0,0.00014999,2]
[422506581,1779006639000,-500.0,0.00014999,2]
[422506593,1779006639000,-656.53,0.00014999,2]
[422506586,1779006639000,-500.0,0.00014999,2]
[422506598,1779006639000,-656.53,0.00014999,2]
[422506605,1779006639000,-656.53,0.00014999,2]
[422506597,1779006639000,-656.53,0.00014999,2]
[422506600,1779006639000,-656.53,0.00014999,2]
[422506603,1779006639000,-656.53,0.00014999,2]
[422506596,1779006639000,-656.53,0.00014999,2]
[422506602,1779006639000,-656.53,0.00014999,2]
[422506599,1779006639000,-656.53,0.00014999,2]
[422506604,1779006639000,-656.53,0.00014999,2]
[422506601,1779006639000,-656.53,0.00014999,2]
[422506606,1779006639000,-656.53,0.00014999,2]
[422506580,1779006639000,-500.0,0.00014999,2]
[422506607,1779006639000,-656.53,0.00014999,2]
[422506608,1779006639000,-656.53,0.00014999,2]
[422506613,1779006639000,-500.0,0.00014999,2]
[422506595,1779006639000,-656.53,0.00014999,2]
[422506579,1779006639000,-500.0,0.00014999,2]
[422506568,1779006639000,-1000.0,0.00014999,2]
[422506577,1779006639000,-500.0,0.00014999,2]
[422506550,1779006639000,-2000.0,0.00014974,2]
[422506549,1779006639000,-1967.63,0.00014973,2]
[422506548,1779006639000,-12532.0,0.00014959,2]
[422506551,1779006639000,-269.36,0.00014985,2]
[422506552,1779006639000,-269.36,0.00014985,2]
[422506553,1779006639000,-240.62685798,0.00014986,2]
[422506554,1779006639000,-153.63162992,0.00014986,2]
[422506555,1779006639000,-179.85839332,0.00014986,2]
[422506556,1779006639000,-298.59600068,0.00014986,2]
[422506560,1779006639000,-202.29802685,0.00014986,2]
[422506557,1779006639000,-298.28016069,0.00014986,2]
[422506559,1779006639000,-176.6685321,0.00014986,2]
[422506561,1779006639000,-266.61063862,0.00014986,2]
[422506558,1779006639000,-222.83796618,0.00014986,2]
[422506565,1779006639000,-151.0,0.00014996,2]
[422506562,1779006639000,-630.89801711,0.0001499,2]
[422506564,1779006639000,-630.89801711,0.0001499,2]
[422506563,1779006639000,-630.89801711,0.0001499,2]
[422506566,1779006639000,-151.0,0.00014997,2]
[422506567,1779006639000,-151.0,0.00014997,2]
[422506610,1779006639000,-656.6441162,0.00014999,2]
[422506570,1779006639000,-500.0,0.00014999,2]
[422506569,1779006639000,-500.0,0.00014999,2]
[422506574,1779006639000,-500.0,0.00014999,2]
[422506573,1779006639000,-500.0,0.00014999,2]
[422506572,1779006639000,-500.0,0.00014999,2]
[422506575,1779006639000,-500.0,0.00014999,2]
[422506571,1779006639000,-500.0,0.00014999,2]
[422506576,1779006639000,-500.0,0.00014999,2]
[422506578,1779006639000,-500.0,0.00014999,2]
[422506609,1779006639000,-656.53,0.00014999,2]
[422506589,1779006639000,-656.53,0.00014999,2]
[422506612,1779006639000,-500.0,0.00014999,2]
[422506648,1779006639000,-500.0,0.00014999,2]
[422506649,1779006639000,-500.0,0.00014999,2]
[422506655,1779006639000,-500.0,0.00014999,2]
[422506654,1779006639000,-500.0,0.00014999,2]
[422506652,1779006639000,-500.0,0.00014999,2]
[422506651,1779006639000,-500.0,0.00014999,2]
[422506653,1779006639000,-500.0,0.00014999,2]
[422506647,1779006639000,-500.0,0.00014999,2]
[422506650,1779006639000,-500.0,0.00014999,2]
[422506656,1779006639000,-500.0,0.00014999,2]
[422506657,1779006639000,-500.0,0.00014999,2]
[422506658,1779006639000,-500.0,0.00014999,2]
[422506659,1779006639000,-500.0,0.00014999,2]
[422506660,1779006639000,-500.0,0.00014999,2]
[422506661,1779006639000,-500.0,0.00014999,2]
[422506662,1779006639000,-411.12,0.00014999,2]
[422506663,1779006639000,-500.0,0.00014999,2]
[422506664,1779006639000,-291.72783795,0.00014999,2]
[422506666,1779006639000,-500.0,0.00014999,2]
[422506668,1779006639000,-621.26,0.00014999,2]
[422506667,1779006639000,-516.00501765,0.00014999,2]
[422506665,1779006639000,-500.0,0.00014999,2]
[422506670,1779006639000,-621.26,0.00014999,2]
[422506671,1779006639000,-621.26,0.00014999,2]
[422506669,1779006639000,-621.26,0.00014999,2]
[422506672,1779006639000,-621.26,0.00014999,2]
[422506674,1779006639000,-621.26,0.00014999,2]
[422506611,1779006639000,-500.0,0.00014999,2]
[422506673,1779006639000,-621.26,0.00014999,2]
[422506646,1779006639000,-500.0,0.00014999,2]
[422506645,1779006639000,-500.0,0.00014999,2]
[422506675,1779006639000,-621.26,0.00014999,2]
[422506642,1779006639000,-500.0,0.00014999,2]
[422506644,1779006639000,-500.0,0.00014999,2]
[422506615,1779006639000,-500.0,0.00014999,2]
[422506616,1779006639000,-500.0,0.00014999,2]
[422506617,1779006639000,-500.0,0.00014999,2]
[422506619,1779006639000,-500.0,0.00014999,2]
[422506618,1779006639000,-500.0,0.00014999,2]
[422506620,1779006639000,-500.0,0.00014999,2]
[422506621,1779006639000,-500.0,0.00014999,2]
[422506622,1779006639000,-500.0,0.00014999,2]
[422506624,1779006639000,-541.1156354,0.00014999,2]
[422506625,1779006639000,-500.0,0.00014999,2]
[422506623,1779006639000,-500.0,0.00014999,2]
[422506627,1779006639000,-500.0,0.00014999,2]
[422506626,1779006639000,-500.0,0.00014999,2]
[422506629,1779006639000,-500.0,0.00014999,2]
[422506614,1779006639000,-500.0,0.00014999,2]
[422506628,1779006639000,-500.0,0.00014999,2]
[422506630,1779006639000,-323.78726493,0.00014999,2]
[422506637,1779006639000,-500.0,0.00014999,2]
[422506640,1779006639000,-500.0,0.00014999,2]
[422506643,1779006639000,-500.0,0.00014999,2]
[422506641,1779006639000,-500.0,0.00014999,2]
[422506638,1779006639000,-500.0,0.00014999,2]
[422506639,1779006639000,-529.82575751,0.00014999,2]
[422506635,1779006639000,-500.0,0.00014999,2]
[422506633,1779006639000,-500.0,0.00014999,2]
[422506634,1779006639000,-500.0,0.00014999,2]
[422506631,1779006639000,-500.0,0.00014999,2]
[422506632,1779006639000,-500.0,0.00014999,2]
[422506636,1779006639000,-519.65409616,0.00014999,2]
[422506716,1779006640000,-3954.56,0.00014999,2]
[422506720,1779006640000,-3954.56,0.00014999,2]
[422506721,1779006640000,-3954.56,0.00014999,2]
[422506715,1779006640000,-3954.56,0.00014999,2]
[422506719,1779006640000,-3954.56,0.00014999,2]
[422506713,1779006640000,-3954.56,0.00014999,2]
[422506718,1779006640000,-3954.56,0.00014999,2]
[422506722,1779006640000,-3954.56,0.00014999,2]
[422506712,1779006640000,-3954.56,0.00014999,2]
[422506714,1779006640000,-3954.56,0.00014999,2]
[422506710,1779006640000,-3954.56,0.00014999,2]
[422506717,1779006640000,-3954.56,0.00014999,2]
[422506724,1779006640000,-500.0,0.00014999,2]
[422506729,1779006640000,-500.0,0.00014999,2]
[422506736,1779006640000,-500.0,0.00014999,2]
[422506726,1779006640000,-500.0,0.00014999,2]
[422506725,1779006640000,-500.0,0.00014999,2]
[422506727,1779006640000,-500.0,0.00014999,2]
[422506728,1779006640000,-500.0,0.00014999,2]
[422506731,1779006640000,-500.0,0.00014999,2]
[422506733,1779006640000,-500.0,0.00014999,2]
[422506732,1779006640000,-500.0,0.00014999,2]
[422506730,1779006640000,-500.0,0.00014999,2]
[422506734,1779006640000,-500.0,0.00014999,2]
[422506735,1779006640000,-500.0,0.00014999,2]
[422506737,1779006640000,-500.0,0.00014999,2]
[422506711,1779006640000,-3954.56,0.00014999,2]
[422506738,1779006640000,-500.0,0.00014999,2]
[422506723,1779006640000,-3954.72357832,0.00014999,2]
[422506709,1779006640000,-3954.56,0.00014999,2]
[422506690,1779006640000,-621.26,0.00014999,2]
[422506705,1779006640000,-3954.56,0.00014999,2]
[422506741,1779006640000,-394.9514487,0.00014999,2]
[422506676,1779006640000,-621.26,0.00014999,2]
[422506678,1779006640000,-621.26,0.00014999,2]
[422506680,1779006640000,-621.26,0.00014999,2]
[422506677,1779006640000,-621.26,0.00014999,2]
[422506679,1779006640000,-621.26,0.00014999,2]
[422506681,1779006640000,-621.26,0.00014999,2]
[422506682,1779006640000,-621.26,0.00014999,2]
[422506683,1779006640000,-621.26,0.00014999,2]
[422506685,1779006640000,-621.26,0.00014999,2]
[422506686,1779006640000,-621.26,0.00014999,2]
[422506687,1779006640000,-621.26,0.00014999,2]
[422506684,1779006640000,-621.26,0.00014999,2]
[422506701,1779006640000,-3954.56,0.00014999,2]
[422506692,1779006640000,-407.52692341,0.00014999,2]
[422506693,1779006640000,-500.0,0.00014999,2]
[422506688,1779006640000,-621.26,0.00014999,2]
[422506691,1779006640000,-621.35,0.00014999,2]
[422506695,1779006640000,-500.0,0.00014999,2]
[422506694,1779006640000,-500.0,0.00014999,2]
[422506708,1779006640000,-3954.56,0.00014999,2]
[422506697,1779006640000,-3954.56,0.00014999,2]
[422506696,1779006640000,-349.33158592,0.00014999,2]
[422506707,1779006640000,-3954.56,0.00014999,2]
[422506706,1779006640000,-3954.56,0.00014999,2]
[422506703,1779006640000,-3954.56,0.00014999,2]
[422506699,1779006640000,-3954.56,0.00014999,2]
[422506704,1779006640000,-3954.56,0.00014999,2]
[422506689,1779006640000,-621.26,0.00014999,2]
[422506743,1779006640000,-502.07620855,0.00014999,2]
[422506783,1779006640000,-500.0,0.00014999,2]
[422506742,1779006640000,-500.0,0.00014999,2]
[422506775,1779006640000,-500.0,0.00014999,2]
[422506776,1779006640000,-500.0,0.00014999,2]
[422506778,1779006640000,-500.0,0.00014999,2]
[422506785,1779006640000,-500.0,0.00014999,2]
[422506779,1779006640000,-500.0,0.00014999,2]
[422506777,1779006640000,-500.0,0.00014999,2]
[422506780,1779006640000,-500.0,0.00014999,2]
[422506782,1779006640000,-500.0,0.00014999,2]
[422506784,1779006640000,-500.0,0.00014999,2]
[422506781,1779006640000,-500.0,0.00014999,2]
[422506786,1779006640000,-500.0,0.00014999,2]
[422506788,1779006640000,-500.0,0.00014999,2]
[422506789,1779006640000,-500.0,0.00014999,2]
[422506774,1779006640000,-500.0,0.00014999,2]
[422506794,1779006640000,-500.0,0.00014999,2]
[422506791,1779006640000,-500.0,0.00014999,2]
[422506793,1779006640000,-500.0,0.00014999,2]
[422506790,1779006640000,-160.40825692,0.00014999,2]
[422506798,1779006640000,-500.0,0.00014999,2]
[422506796,1779006640000,-500.0,0.00014999,2]
[422506795,1779006640000,-500.0,0.00014999,2]
[422506797,1779006640000,-500.0,0.00014999,2]
[422506800,1779006640000,-500.0,0.00014999,2]
[422506799,1779006640000,-416.4182661,0.00014999,2]
[422506802,1779006640000,-500.0,0.00014999,2]
[422506803,1779006640000,-500.0,0.00014999,2]
[422506739,1779006640000,-500.0,0.00014999,2]
[422506801,1779006640000,-500.0,0.00014999,2]
[422506792,1779006640000,-500.0,0.00014999,2]
[422506771,1779006640000,-507.84172079,0.00014999,2]
[422506787,1779006640000,-500.0,0.00014999,2]
[422506769,1779006640000,-500.0,0.00014999,2]
[422506744,1779006640000,-500.0,0.00014999,2]
[422506770,1779006640000,-500.0,0.00014999,2]
[422506746,1779006640000,-500.0,0.00014999,2]
[422506749,1779006640000,-500.0,0.00014999,2]
[422506747,1779006640000,-500.0,0.00014999,2]
[422506740,1779006640000,-500.0,0.00014999,2]
[422506748,1779006640000,-500.0,0.00014999,2]
[422506751,1779006640000,-500.0,0.00014999,2]
[422506750,1779006640000,-500.0,0.00014999,2]
[422506753,1779006640000,-500.0,0.00014999,2]
[422506754,1779006640000,-500.0,0.00014999,2]
[422506757,1779006640000,-500.0,0.00014999,2]
[422506752,1779006640000,-500.0,0.00014999,2]
[422506760,1779006640000,-500.0,0.00014999,2]
[422506756,1779006640000,-500.0,0.00014999,2]
[422506745,1779006640000,-500.0,0.00014999,2]
[422506759,1779006640000,-500.0,0.00014999,2]
[422506772,1779006640000,-500.0,0.00014999,2]
[422506758,1779006640000,-500.0,0.00014999,2]
[422506767,1779006640000,-500.0,0.00014999,2]
[422506766,1779006640000,-500.0,0.00014999,2]
[422506765,1779006640000,-500.0,0.00014999,2]
[422506764,1779006640000,-500.0,0.00014999,2]
[422506768,1779006640000,-181.41975835,0.00014999,2]
[422506762,1779006640000,-500.0,0.00014999,2]
[422506763,1779006640000,-500.0,0.00014999,2]
[422506761,1779006640000,-475.39531452,0.00014999,2]
[422506755,1779006640000,-500.0,0.00014999,2]
[422506773,1779006640000,-500.0,0.00014999,2]
[422506847,1779006641000,-309.02129379,0.00014999,2]
[422506833,1779006641000,-500.0,0.00014999,2]
[422506841,1779006641000,-500.0,0.00014999,2]
[422506851,1779006641000,-500.0,0.00014999,2]
[422506843,1779006641000,-500.0,0.00014999,2]
[422506842,1779006641000,-500.0,0.00014999,2]
[422506839,1779006641000,-500.0,0.00014999,2]
[422506840,1779006641000,-500.0,0.00014999,2]
[422506837,1779006641000,-500.0,0.00014999,2]
[422506844,1779006641000,-500.0,0.00014999,2]
[422506836,1779006641000,-500.0,0.00014999,2]
[422506852,1779006641000,-500.0,0.00014999,2]
[422506853,1779006641000,-500.0,0.00014999,2]
[422506854,1779006641000,-500.0,0.00014999,2]
[422506846,1779006641000,-500.0,0.00014999,2]
[422506845,1779006641000,-500.0,0.00014999,2]
[422506849,1779006641000,-500.0,0.00014999,2]
[422506850,1779006641000,-500.0,0.00014999,2]
[422506856,1779006641000,-500.0,0.00014999,2]
[422506858,1779006641000,-500.0,0.00014999,2]
[422506866,1779006641000,-650.28,0.00014999,2]
[422506867,1779006641000,-650.28,0.00014999,2]
[422506855,1779006641000,-500.0,0.00014999,2]
[422506857,1779006641000,-500.0,0.00014999,2]
[422506859,1779006641000,-500.0,0.00014999,2]
[422506860,1779006641000,-500.0,0.00014999,2]
[422506863,1779006641000,-500.0,0.00014999,2]
[422506832,1779006641000,-500.0,0.00014999,2]
[422506848,1779006641000,-500.0,0.00014999,2]
[422506830,1779006641000,-500.0,0.00014999,2]
[422506804,1779006641000,-500.0,0.00014999,2]
[422506831,1779006641000,-182.10845396,0.00014999,2]
[422506862,1779006641000,-500.0,0.00014999,2]
[422506806,1779006641000,-594.53571005,0.00014999,2]
[422506805,1779006641000,-500.0,0.00014999,2]
[422506810,1779006641000,-500.0,0.00014999,2]
[422506807,1779006641000,-500.0,0.00014999,2]
[422506808,1779006641000,-500.0,0.00014999,2]
[422506809,1779006641000,-500.0,0.00014999,2]
[422506811,1779006641000,-500.0,0.00014999,2]
[422506812,1779006641000,-500.0,0.00014999,2]
[422506813,1779006641000,-500.0,0.00014999,2]
[422506814,1779006641000,-500.0,0.00014999,2]
[422506816,1779006641000,-500.0,0.00014999,2]
[422506815,1779006641000,-500.0,0.00014999,2]
[422506834,1779006641000,-500.0,0.00014999,2]
[422506817,1779006641000,-500.0,0.00014999,2]
[422506820,1779006641000,-500.0,0.00014999,2]
[422506818,1779006641000,-500.0,0.00014999,2]
[422506822,1779006641000,-167.0,0.00014999,2]
[422506821,1779006641000,-372.71342826,0.00014999,2]
[422506819,1779006641000,-500.0,0.00014999,2]
[422506824,1779006641000,-167.0,0.00014999,2]
[422506823,1779006641000,-167.0,0.00014999,2]
[422506826,1779006641000,-167.0,0.00014999,2]
[422506828,1779006641000,-500.0,0.00014999,2]
[422506827,1779006641000,-167.0,0.00014999,2]
[422506838,1779006641000,-500.0,0.00014999,2]
[422506835,1779006641000,-500.0,0.00014999,2]
[422506829,1779006641000,-500.0,0.00014999,2]
[422506825,1779006641000,-167.0,0.00014999,2]
[422506865,1779006641000,-650.28,0.00014999,2]
[422506908,1779006641000,-500.0,0.00015312,2]
[422506861,1779006641000,-637.04188186,0.00014999,2]
[422506899,1779006641000,-8083.88332088,0.00015,2]
[422506898,1779006641000,-2076.43774024,0.00015,2]
[422506902,1779006641000,-282.66,0.00015,2]
[422506904,1779006641000,-237.26041992,0.00015052,21]
[422506914,1779006641000,-166.66,0.00015783,2]
[422506906,1779006641000,-200.0,0.00015301,2]
[422506905,1779006641000,-200.0,0.0001515,2]
[422506903,1779006641000,-172.97403995,0.00015,2]
[422506907,1779006641000,-166.66,0.00015309,2]
[422506909,1779006641000,-1967.63,0.00015321,2]
[422506910,1779006641000,-500.0,0.0001535,2]
[422506911,1779006641000,-165.9,0.00015563,2]
[422506912,1779006641000,-500.0,0.00015586,2]
[422506896,1779006641000,-300.0,0.00014999,2]
[422506913,1779006641000,-500.0,0.00015776,2]
[422506917,1779006641000,-587.0,0.00016015,2]
[422506919,1779006641000,-690.84,0.00016058,2]
[422506916,1779006641000,-400.90550288,0.00016,2]
[422506918,1779006641000,-500.0,0.0001605,2]
[422506926,1779006641000,-6454.3,0.00016116,2]
[422506924,1779006641000,-433.0,0.00016116,2]
[422506920,1779006641000,-214.36,0.00016078,2]
[422506925,1779006641000,-299.99,0.00016116,4]
[422506921,1779006641000,-400.90550288,0.000161,2]
[422506922,1779006641000,-300.0,0.00016115,2]
[422506923,1779006641000,-300.0,0.00016115,2]
[422506927,1779006641000,-653.24,0.00016116,2]
[422506928,1779006641000,-999.99,0.00016116,2]
[422506915,1779006641000,-500.0,0.0001586,2]
[422506900,1779006641000,-3753167.34235485,0.00015,2]
[422506929,1779006641000,-3658.73,0.00016116,5]
[422506893,1779006641000,-311.07666925,0.00014999,2]
[422506895,1779006641000,-300.0,0.00014999,2]
[422506868,1779006641000,-650.28,0.00014999,2]
[422506869,1779006641000,-650.28,0.00014999,2]
[422506870,1779006641000,-650.28,0.00014999,2]
[422506873,1779006641000,-650.28,0.00014999,2]
[422506875,1779006641000,-650.28,0.00014999,2]
[422506872,1779006641000,-650.28,0.00014999,2]
[422506871,1779006641000,-650.28,0.00014999,2]
[422506874,1779006641000,-650.28,0.00014999,2]
[422506876,1779006641000,-650.28,0.00014999,2]
[422506877,1779006641000,-650.28,0.00014999,2]
[422506878,1779006641000,-650.28,0.00014999,2]
[422506880,1779006641000,-650.28,0.00014999,2]
[422506882,1779006641000,-650.28,0.00014999,2]
[422506864,1779006641000,-299.04457814,0.00014999,2]
[422506881,1779006641000,-650.28,0.00014999,2]
[422506879,1779006641000,-650.28,0.00014999,2]
[422506897,1779006641000,-3027882.59840459,0.00015,2]
[422506890,1779006641000,-500.0,0.00014999,2]
[422506892,1779006641000,-343.17355316,0.00014999,2]
[422506901,1779006641000,-200.0,0.00015,2]
[422506891,1779006641000,-500.0,0.00014999,2]
[422506894,1779006641000,-300.0,0.00014999,2]
[422506889,1779006641000,-650.38,0.00014999,2]
[422506888,1779006641000,-650.28,0.00014999,2]
[422506885,1779006641000,-650.28,0.00014999,2]
[422506884,1779006641000,-650.28,0.00014999,2]
[422506883,1779006641000,-650.28,0.00014999,2]
[422506886,1779006641000,-650.28,0.00014999,2]
[422506887,1779006641000,-500.0,0.00014999,2]
[422506962,1779006642000,-500.0,0.00017504,2]
[422506963,1779006642000,-823.0,0.00017557,2]
[422506967,1779006642000,-151.0,0.00017725,2]
[422506965,1779006642000,-205.94293675,0.00017725,2]
[422506966,1779006642000,-151.0,0.00017725,2]
[422506968,1779006642000,-151.0,0.00017725,2]
[422506969,1779006642000,-151.0,0.00017725,2]
[422506970,1779006642000,-151.0,0.00017725,2]
[422506972,1779006642000,-151.0,0.00017725,2]
[422506971,1779006642000,-151.0,0.00017725,2]
[422506973,1779006642000,-151.0,0.00017725,2]
[422506964,1779006642000,-300.0,0.00017724,2]
[422506978,1779006642000,-500.0,0.00017725,2]
[422506975,1779006642000,-151.0,0.00017725,2]
[422506976,1779006642000,-151.0,0.00017725,2]
[422506977,1779006642000,-151.0,0.00017725,2]
[422506987,1779006642000,-151.0,0.00017725,2]
[422506957,1779006642000,-500.0,0.00017288,2]
[422506980,1779006642000,-500.0,0.00017725,2]
[422506981,1779006642000,-151.0,0.00017725,2]
[422506982,1779006642000,-500.0,0.00017725,2]
[422506979,1779006642000,-151.0,0.00017725,2]
[422506984,1779006642000,-500.0,0.00017725,2]
[422506983,1779006642000,-151.0,0.00017725,2]
[422506986,1779006642000,-500.0,0.00017725,2]
[422506985,1779006642000,-151.0,0.00017725,2]
[422506974,1779006642000,-151.0,0.00017725,2]
[422506960,1779006642000,-736.0,0.00017412,2]
[422506954,1779006642000,-500.0,0.00016956,2]
[422506959,1779006642000,-152.0,0.00017388,2]
[422506988,1779006642000,-500.0,0.00017725,2]
[422506931,1779006642000,-15597.09,0.00016116,2]
[422506930,1779006642000,-1793.64,0.00016116,2]
[422506932,1779006642000,-373.67,0.00016116,2]
[422506934,1779006642000,-2351.0,0.00016123,2]
[422506933,1779006642000,-499.99,0.00016116,2]
[422506936,1779006642000,-400.90550288,0.000162,2]
[422506935,1779006642000,-500.0,0.00016134,2]
[422506937,1779006642000,-166.66,0.00016257,2]
[422506938,1779006642000,-500.0,0.00016324,2]
[422506939,1779006642000,-500.0,0.00016408,2]
[422506941,1779006642000,-229.97,0.00016438,2]
[422506940,1779006642000,-1026.5,0.00016438,2]
[422506943,1779006642000,-1173.98135032,0.00016605,2]
[422506944,1779006642000,-2000.0,0.00016638,2]
[422506942,1779006642000,-375.81059483,0.00016598,2]
[422506948,1779006642000,-183.5,0.00016712,2]
[422506947,1779006642000,-183.5,0.00016712,2]
[422506949,1779006642000,-183.5,0.00016712,2]
[422506946,1779006642000,-183.5,0.00016712,2]
[422506950,1779006642000,-183.5,0.00016712,2]
[422506951,1779006642000,-183.5,0.00016712,2]
[422506956,1779006642000,-500.0,0.0001723,2]
[422506961,1779006642000,-690.84,0.00017427,2]
[422506955,1779006642000,-282.66,0.000172,2]
[422506952,1779006642000,-169.29,0.00016712,2]
[422506958,1779006642000,-165.9,0.00017293,2]
[422506953,1779006642000,-166.66,0.00016731,2]
[422506945,1779006642000,-500.0,0.00016682,2]
[422506989,1779006642000,-151.0,0.00017725,2]
[422506992,1779006642000,-500.0,0.00017725,2]
[422507021,1779006642000,-500.0,0.00018052,2]
[422507032,1779006642000,-2918.47,0.00018688,2]